Workbook

Sheet Grand Total Bid Price
B2: Drymill Service Summary | I2: Increase | J2: 0.0%
B3: Elements | C3: Year 1 | D3: Monthly | E3: Monthly after annual increase | F3: Total for 18 Months
B4: Destacking | C4: ='Destacking Summary'!L36 -> 0 | D4: =C4/12 -> 0 | E4: =(D4*$J$2)+D4 -> 0 | F4: =E4*18 -> 0
B5: Rework | C5: ='Rework Summary '!Q15 -> 0 | D5: =C5/12 -> 0 | E5: =(D5*$J$2)+D5 -> 0 | F5: =E5*18 -> 0
B6: Overtime | C6: ='Rework Summary '!X14 -> 0 | D6: =C6/12 -> 0 | E6: =(D6*$J$2)+D6 -> 0 | F6: =E6*18 -> 0
B7: Total Bid price | C7: =SUM(C4:C6) -> 0 | D7: =SUM(D4:D6) -> 0 | E7: =SUM(E4:E6) -> 0 | F7: =SUM(F4:F6) -> 0
E10: Ave cost per head monhtly - OT excl
E11: Total head count | F11: ='Data input Destacking'!C16+'Data input Rework'!C13 -> 166
E12: Monthly | F12: =((F4+F5)/F11)/18 -> 0
E13: Daily | F13: =F12/'Data input Destacking'!N3 -> 0
B15: Stacking Service Summary
B16: Elements | C16: Year 1 | D16: Monthly | E16: Monthly after annual increase | F16: Total for 18 Months
B17: Stacking | C17: ='Stacking Summary'!R15 -> 0 | D17: =C17/12 -> 0 | E17: =(D17*$J$2)+D17 -> 0 | F17: =E17*18 -> 0
B18: Overtime | C18: ='Stacking Summary'!Y14 -> 0 | D18: =C18/12 -> 0 | E18: =(D18*$J$2)+D18 -> 0 | F18: =E18*18 -> 0
B19: Total Bid price | C19: =SUM(C17:C18) -> 0 | D19: =SUM(D17:D18) -> 0 | E19: =SUM(E17:E18) -> 0 | F19: =SUM(F17:F18) -> 0
E22: Ave cost per head monhtly - OT excl
E23: Total head count | F23: ='Data Input Stacking'!H14 -> 77
E24: Monthly | F24: =(F17/F23)/18 -> 0
E25: Daily | F25: =F24/'Data Input Stacking'!P3 -> 0
B28: Grand Total - Timbadola Contract Services
C29: Year 1 | D29: Monthly | E29: Monthly after annual increase | F29: Total for 18 Months
B30: Total Bid price | C30: =C7+C19 -> 0 | D30: =D7+D19 -> 0 | E30: =E7+E19 -> 0 | F30: =F7+F19 -> 0 | G30: Total bid price (vat Excl.)
E34: Total Price (Vat Incl.) | F34: =(F30*15%)+F30 -> 0

Sheet Stacking Summary
V1: Overtime rates and Projection
A2: Position | B2: Shift 1 | C2: Shift 2 | D2: Shift 3 | E2: Shift 4 | F2: Grades | G2: Total | H2: Base Rate | I2: Daily Leave Cost | J2: Medicals Survey and First aid boxes | K2: PPE and Safety | L2: Consumables | M2: Transport | N2: Training | O2: Night Shift Allowance (12% of base rate) | P2: Total Cost | Q2: Management Fee | R2: Grand Total | S2: Daily Rates | V2: Normal | W2: Sun / Public | X2: OT Projection (Ave hours monthly) | Y2: Total
A3: Stackers | B3: 25 | C3: 25 | F3: A1 | G3: =SUM(B3:E3) -> 50 | H3: ='Data Input Stacking'!I4 -> 0 | I3: ='Data Input Stacking'!$J$18 -> 0 | J3: ='Data Input Stacking'!$F$66+'Data Input Stacking'!$E$90 -> 0 | K3: ='Data Input Stacking'!$F$35+'Data Input Stacking'!$F$42 -> 0 | L3: ='Data Input Stacking'!$F$60 -> 0 | M3: ='Data Input Stacking'!$L$74 -> 0 | N3: ='Data Input Stacking'!$E$83 -> 0 | O3: =(H3*12%)/2 -> 0 | P3: =SUM(H3:O3)*G3 -> 0 | R3: =(Q3*P3)+P3 -> 0 | S3: =R3/G3 -> R0.00 | V3: =(H3/9)*1.5 -> 0 | W3: =(H3/9)*2 -> 0 | X3: 32 | Y3: =X3*V3*G3 -> R0.00
A4: Sticker Handler | B4: 1 | C4: 1 | F4: A1 | G4: =SUM(B4:E4) -> 2 | H4: ='Data Input Stacking'!I5 -> 0 | I4: ='Data Input Stacking'!$J$18 -> 0 | J4: ='Data Input Stacking'!$F$66+'Data Input Stacking'!$E$90 -> 0 | K4: ='Data Input Stacking'!$F$35+'Data Input Stacking'!$F$42 -> 0 | L4: ='Data Input Stacking'!$F$60 -> 0 | M4: ='Data Input Stacking'!$L$74 -> 0 | N4: ='Data Input Stacking'!$E$83 -> 0 | O4: =(H4*12%)/2 -> 0 | P4: =SUM(H4:O4)*G4 -> 0 | R4: 0 | S4: R0.00 | V4: 0 | W4: 0 | X4: 32 | Y4: R0.00
A5: Cleaner | B5: 1 | C5: 1 | F5: A1 | G5: 2 | H5: ='Data Input Stacking'!I6 -> 0 | I5: ='Data Input Stacking'!$J$18 -> 0 | J5: ='Data Input Stacking'!$F$66+'Data Input Stacking'!$E$90 -> 0 | K5: ='Data Input Stacking'!$F$35+'Data Input Stacking'!$F$42 -> 0 | L5: ='Data Input Stacking'!$F$60 -> 0 | M5: ='Data Input Stacking'!$L$74 -> 0 | N5: ='Data Input Stacking'!$E$83 -> 0 | O5: 0 | P5: 0 | R5: 0 | S5: R0.00 | V5: 0 | W5: 0 | X5: 32 | Y5: R0.00
A6: Waste Recovery | B6: 2 | C6: 2 | F6: A1 | G6: 4 | H6: ='Data Input Stacking'!I7 -> 0 | I6: ='Data Input Stacking'!$J$18 -> 0 | J6: ='Data Input Stacking'!$F$66+'Data Input Stacking'!$E$90 -> 0 | K6: ='Data Input Stacking'!$F$35+'Data Input Stacking'!$F$42 -> 0 | L6: ='Data Input Stacking'!$F$60 -> 0 | M6: ='Data Input Stacking'!$L$74 -> 0 | N6: ='Data Input Stacking'!$E$83 -> 0 | O6: 0 | P6: 0 | R6: 0 | S6: R0.00 | V6: 0 | W6: 0 | X6: 32 | Y6: R0.00
A7: Board Separator | B7: 4 | C7: 4 | F7: A3 | G7: 8 | H7: ='Data Input Stacking'!I8 -> 0 | I7: ='Data Input Stacking'!J19 -> 0 | J7: ='Data Input Stacking'!$F$66+'Data Input Stacking'!$E$90 -> 0 | K7: ='Data Input Stacking'!$F$35+'Data Input Stacking'!$F$42 -> 0 | L7: ='Data Input Stacking'!$F$60 -> 0 | M7: ='Data Input Stacking'!$L$74 -> 0 | N7: ='Data Input Stacking'!$E$83 -> 0 | O7: 0 | P7: 0 | R7: 0 | S7: R0.00 | V7: 0 | W7: 0 | X7: 32 | Y7: R0.00
A8: Stack Chockers | B8: 1 | C8: 1 | F8: A1 | G8: 2 | H8: ='Data Input Stacking'!I9 -> 0 | I8: ='Data Input Stacking'!$J$18 -> 0 | J8: ='Data Input Stacking'!$F$66+'Data Input Stacking'!$E$90 -> 0 | K8: ='Data Input Stacking'!$F$35+'Data Input Stacking'!$F$42 -> 0 | L8: ='Data Input Stacking'!$F$60 -> 0 | M8: ='Data Input Stacking'!$L$74 -> 0 | N8: ='Data Input Stacking'!$E$83 -> 0 | O8: 0 | P8: 0 | R8: 0 | S8: R0.00 | V8: 0 | W8: 0 | X8: 32 | Y8: R0.00
A9: Chipper & Screen | B9: 1 | F9: A1 | G9: 1 | H9: ='Data Input Stacking'!I10 -> 0 | I9: ='Data Input Stacking'!$J$18 -> 0 | J9: ='Data Input Stacking'!$F$66+'Data Input Stacking'!$E$90 -> 0 | K9: ='Data Input Stacking'!$F$35+'Data Input Stacking'!$F$42 -> 0 | L9: ='Data Input Stacking'!$F$60 -> 0 | M9: ='Data Input Stacking'!$L$74 -> 0 | N9: ='Data Input Stacking'!$E$83 -> 0 | O9: 0 | P9: 0 | R9: 0 | S9: R0.00 | V9: 0 | W9: 0 | X9: 32 | Y9: R0.00
A10: Boiler Feeder | B10: 1 | C10: 1 | D10: 1 | E10: 1 | F10: A1 | G10: 4 | H10: ='Data Input Stacking'!I11 -> 0 | I10: ='Data Input Stacking'!$J$18 -> 0 | J10: ='Data Input Stacking'!$F$66+'Data Input Stacking'!$E$90 -> 0 | K10: ='Data Input Stacking'!$F$35+'Data Input Stacking'!$F$42 -> 0 | L10: ='Data Input Stacking'!$F$60 -> 0 | M10: ='Data Input Stacking'!$L$74 -> 0 | N10: ='Data Input Stacking'!$E$83 -> 0 | O10: 0 | P10: 0 | R10: 0 | S10: R0.00 | V10: 0 | W10: 0 | X10: 32 | Y10: R0.00
A11: Lubricators | B11: 1 | C11: 1 | F11: A1 | G11: 2 | H11: ='Data Input Stacking'!I12 -> 0 | I11: ='Data Input Stacking'!$J$18 -> 0 | J11: ='Data Input Stacking'!$F$66+'Data Input Stacking'!$E$90 -> 0 | K11: ='Data Input Stacking'!$F$35+'Data Input Stacking'!$F$42 -> 0 | L11: ='Data Input Stacking'!$F$60 -> 0 | M11: ='Data Input Stacking'!$L$74 -> 0 | N11: ='Data Input Stacking'!$E$83 -> 0 | O11: 0 | P11: 0 | R11: 0 | S11: R0.00 | V11: 0 | W11: 0 | X11: 32 | Y11: R0.00
A12: Supervisor | B12: 1 | C12: 1 | F12: B1 | G12: 2 | H12: ='Data Input Stacking'!I13 -> 0 | I12: ='Data Input Stacking'!J20 -> 0 | J12: ='Data Input Stacking'!$F$66+'Data Input Stacking'!$E$90 -> 0 | K12: ='Data Input Stacking'!$F$35+'Data Input Stacking'!$F$42 -> 0 | L12: ='Data Input Stacking'!$F$60 -> 0 | M12: ='Data Input Stacking'!$L$74 -> 0 | N12: ='Data Input Stacking'!$E$83 -> 0 | O12: 0 | P12: 0 | R12: 0 | S12: R0.00 | V12: 0 | W12: 0 | X12: 32 | Y12: R0.00
A13: Total | B13: =SUM(B3:B12) -> 38 | C13: =SUM(C3:C12) -> 37 | D13: =SUM(D3:D12) -> 1 | E13: =SUM(E3:E12) -> 1 | G13: =SUM(G3:G12) -> 77 | Q13: Total Daily | R13: =SUM(R3:R12) -> 0 | X13: Ave OT monthly | Y13: =SUM(Y3:Y12) -> R0.00
Q14: Total Monthly | R14: =R13*'[1]Data input & costing'!P3 -> 0 | X14: Ave Yearly OT | Y14: =Y13*12 -> R0.00
Q15: Total Yearly | R15: =R13*'[1]Data input & costing'!P2 -> 0
Q18: ave cost per head | R18: =R13/G13 -> 0

Sheet Destacking Summary
D1: Destacking Costing
C2: No# | G2: Daily cost per worker
B3: Resources | C3: Shift 1 | D3: Shift 2 | E3: Total | F3: Grades | G3: Base Rate | H3: Daily Leave Cost | I3: Medicals Survey and First aid boxes | J3: PPE and Safety | K3: Consumables | L3: Transport | M3: Training | N3: Night Shift Allowance (12% of base rate) | O3: Total Cost | P3: Management Fee (%) | Q3: Grand Total
A4: 1 | B4: Destackers | C4: 4 | D4: 4 | E4: =SUM(C4:D4) -> 8 | F4: A3 | G4: ='Data input Destacking'!E5 -> 0 | H4: ='Data input Destacking'!J5 -> 0 | I4: ='Data input Destacking'!$F$55+'Data input Destacking'!$E$78 -> 0 | J4: ='Data input Destacking'!$F$28+'Data input Destacking'!$F$39 -> 0 | K4: ='Data input Destacking'!$F$49 -> 0 | L4: ='Data input Destacking'!$L$63 -> 0 | M4: ='Data input Destacking'!$E$71 -> 0 | N4: =(G4*12%)/2 -> 0 | O4: =SUM(G4:N4)*E4 -> 0 | Q4: =(P4*O4)+O4 -> 0
A5: 2 | B5: Trimsaw operators | C5: 4 | D5: 4 | E5: =SUM(C5:D5) -> 8 | F5: B1 | G5: ='Data input Destacking'!E6 -> 0 | H5: ='Data input Destacking'!J6 -> 0 | I5: ='Data input Destacking'!$F$55+'Data input Destacking'!$E$78 -> 0 | J5: ='Data input Destacking'!$F$28+'Data input Destacking'!$F$39 -> 0 | K5: ='Data input Destacking'!$F$49 -> 0 | L5: ='Data input Destacking'!$L$63 -> 0 | M5: ='Data input Destacking'!$E$71 -> 0 | N5: =(G5*12%)/2 -> 0 | O5: =SUM(G5:N5)*E5 -> 0 | Q5: =(P5*O5)+O5 -> 0
A6: 3 | B6: X-cut operator | C6: 1 | D6: 1 | E6: 2 | F6: B1 | G6: ='Data input Destacking'!E7 -> 0 | H6: ='Data input Destacking'!J7 -> 0 | I6: ='Data input Destacking'!$F$55+'Data input Destacking'!$E$78 -> 0 | J6: ='Data input Destacking'!$F$28+'Data input Destacking'!$F$39 -> 0 | K6: ='Data input Destacking'!$F$49 -> 0 | L6: ='Data input Destacking'!$L$63 -> 0 | M6: ='Data input Destacking'!$E$71 -> 0 | N6: 0 | O6: 0 | Q6: 0
A7: 4 | B7: General workers | C7: 2 | D7: 2 | E7: 4 | F7: A1 | G7: ='Data input Destacking'!E8 -> 0 | H7: ='Data input Destacking'!J8 -> 0 | I7: ='Data input Destacking'!$F$55+'Data input Destacking'!$E$78 -> 0 | J7: ='Data input Destacking'!$F$28+'Data input Destacking'!$F$39 -> 0 | K7: ='Data input Destacking'!$F$49 -> 0 | L7: ='Data input Destacking'!$L$63 -> 0 | M7: ='Data input Destacking'!$E$71 -> 0 | N7: 0 | O7: 0 | Q7: 0
A8: 5 | B8: Ticket Writers | C8: 1 | D8: 1 | E8: 2 | F8: A3 | G8: ='Data input Destacking'!E9 -> 0 | H8: ='Data input Destacking'!J9 -> 0 | I8: ='Data input Destacking'!$F$55+'Data input Destacking'!$E$78 -> 0 | J8: ='Data input Destacking'!$F$28+'Data input Destacking'!$F$39 -> 0 | K8: ='Data input Destacking'!$F$49 -> 0 | L8: ='Data input Destacking'!$L$63 -> 0 | M8: ='Data input Destacking'!$E$71 -> 0 | N8: 0 | O8: 0 | Q8: 0
A9: 6 | B9: Strapper | C9: 1 | D9: 1 | E9: 2 | F9: A1 | G9: ='Data input Destacking'!E10 -> 0 | H9: ='Data input Destacking'!J10 -> 0 | I9: ='Data input Destacking'!$F$55+'Data input Destacking'!$E$78 -> 0 | J9: ='Data input Destacking'!$F$28+'Data input Destacking'!$F$39 -> 0 | K9: ='Data input Destacking'!$F$49 -> 0 | L9: ='Data input Destacking'!$L$63 -> 0 | M9: ='Data input Destacking'!$E$71 -> 0 | N9: 0 | O9: 0 | Q9: 0
A10: 7 | B10: Grader | C10: 2 | D10: 2 | E10: 4 | F10: B1 | G10: ='Data input Destacking'!E11 -> 0 | H10: ='Data input Destacking'!J11 -> 0 | I10: ='Data input Destacking'!$F$55+'Data input Destacking'!$E$78 -> 0 | J10: ='Data input Destacking'!$F$28+'Data input Destacking'!$F$39 -> 0 | K10: ='Data input Destacking'!$F$49 -> 0 | L10: ='Data input Destacking'!$L$63 -> 0 | M10: ='Data input Destacking'!$E$71 -> 0 | N10: 0 | O10: 0 | Q10: 0
A11: 8 | B11: Stackers | C11: 9 | D11: 9 | E11: 18 | F11: A1 | G11: ='Data input Destacking'!E12 -> 0 | H11: ='Data input Destacking'!J12 -> 0 | I11: ='Data input Destacking'!$F$55+'Data input Destacking'!$E$78 -> 0 | J11: ='Data input Destacking'!$F$28+'Data input Destacking'!$F$39 -> 0 | K11: ='Data input Destacking'!$F$49 -> 0 | L11: ='Data input Destacking'!$L$63 -> 0 | M11: ='Data input Destacking'!$E$71 -> 0 | N11: 0 | O11: 0 | Q11: 0
A12: 9 | B12: Sorters | C12: 4 | D12: 4 | E12: 8 | F12: A1 | G12: ='Data input Destacking'!E13 -> 0 | H12: ='Data input Destacking'!J13 -> 0 | I12: ='Data input Destacking'!$F$55+'Data input Destacking'!$E$78 -> 0 | J12: ='Data input Destacking'!$F$28+'Data input Destacking'!$F$39 -> 0 | K12: ='Data input Destacking'!$F$49 -> 0 | L12: ='Data input Destacking'!$L$63 -> 0 | M12: ='Data input Destacking'!$E$71 -> 0 | N12: 0 | O12: 0 | Q12: 0
A13: 10 | B13: Supervisor | C13: 1 | D13: 1 | E13: 2 | F13: B4 | G13: ='Data input Destacking'!E14 -> 0 | H13: ='Data input Destacking'!J14 -> 0 | I13: ='Data input Destacking'!$F$55+'Data input Destacking'!$E$78 -> 0 | J13: ='Data input Destacking'!$F$28+'Data input Destacking'!$F$39 -> 0 | K13: ='Data input Destacking'!$F$49 -> 0 | L13: ='Data input Destacking'!$L$63 -> 0 | M13: ='Data input Destacking'!$E$71 -> 0 | N13: 0 | O13: 0 | Q13: 0
A14: 11 | B14: Foreman | C14: 1 | E14: 1 | F14: C1 | G14: ='Data input Destacking'!E15 -> 0 | H14: ='Data input Destacking'!J15 -> 0 | I14: ='Data input Destacking'!$F$55+'Data input Destacking'!$E$78 -> 0 | J14: ='Data input Destacking'!$F$28+'Data input Destacking'!$F$39 -> 0 | K14: ='Data input Destacking'!$F$49 -> 0 | L14: ='Data input Destacking'!$L$63 -> 0 | M14: ='Data input Destacking'!$E$71 -> 0 | N14: 0 | O14: 0 | Q14: 0
E15: =SUM(E4:E14) -> 59 | O15: =SUM(O4:O14) -> 0 | P15: Daily Cost | Q15: =SUM(Q4:Q14) -> 0
G16: Note: Only put inputs of the yellow Columns
C18: Destacking Model - Tariffs
C19: Dimension | D19: Mix | F19: Potential number of stack daily = (Given) | G19: Profitable stacks target = (Given 12 stacks) | H19: Productivity = (Potential no of stacks / Profitable target stacks) | I19: Deficit = (100% -productivity) | J19: Base rate = (Total Destacking operational cost / Profitable stacks target) | K19: Adjustor = (Deficit X Base Rate) | L19: Rate per stack = (Base rate + adjustor) | M19: Ave per stack
C20: 25/228 | D20: 1% | F20: 12 | G20: 12 | H20: =F20/G20 -> 100% | I20: =100%-H20 -> 0.00% | J20: =$Q$15/G$20 -> 0 | K20: =I20*J20 -> 0 | L20: =J20+K20 -> 0 | M20: =L20*D20 -> 0
C21: 38/50 | D21: 1% | F21: 4 | G21: 12 | H21: =F21/G21 -> 33% | I21: =100%-H21 -> 66.67% | J21: =$Q$15/G$20 -> 0 | K21: =I21*J21 -> 0 | L21: =J21+K21 -> 0 | M21: 0
C22: 38/76 | D22: 7% | F22: 6 | G22: 12 | H22: 50% | I22: 50.00% | J22: 0 | K22: 0 | L22: 0 | M22: 0
C23: 38/114 | D23: 23% | F23: 10 | G23: 12 | H23: 83% | I23: 16.67% | J23: 0 | K23: 0 | L23: 0 | M23: 0
C24: 38/152 | D24: 26% | F24: 12 | G24: 12 | H24: 100% | I24: 0.00% | J24: 0 | K24: 0 | L24: 0 | M24: 0
C25: 38/200 | D25: 8% | F25: 12 | G25: 12 | H25: 100% | I25: 0.00% | J25: 0 | K25: 0 | L25: 0 | M25: 0
C26: 38/228 | D26: 10% | F26: 13 | G26: 12 | H26: 108% | I26: -8.33% | J26: 0 | K26: 0 | L26: 0 | M26: 0
C27: 50/152 | D27: 9% | F27: 13 | G27: 12 | H27: 108% | I27: -8.33% | J27: 0 | K27: 0 | L27: 0 | M27: 0
C28: 50/228 | D28: 8% | F28: 13 | G28: 12 | H28: 108% | I28: -8.33% | J28: 0 | K28: 0 | L28: 0 | M28: 0
C29: 76/152 | D29: 5% | F29: 13 | G29: 12 | H29: 108% | I29: -8.33% | J29: 0 | K29: 0 | L29: 0 | M29: 0
C30: 76/228 | D30: 3% | F30: 13 | G30: 12 | H30: 108% | I30: -8.33% | J30: 0 | K30: 0 | L30: 0 | M30: 0
D31: =SUM(D20:D30) -> 100% | L31: Ave daily rate | M31: =SUM(M20:M30) -> 0
K32: Ideal Production | L32: 12
K33: Daily cost | L33: =Q15 -> 0
K34: Stacks income daily | L34: =M31*L32 -> 0
K35: Monthly Cost | L35: =L34*'Data input Destacking'!N3 -> 0
K36: Yearly Cost | L36: =L33*'Data input Destacking'!N2 -> 0
K38: Ave cost per person | L38: =L33/E15 -> 0

Sheet Rework Summary
D1: Destacking Costing
B3: Drymill Rework Tariffs | U3: Overtime rates
B4: Resources | C4: Shift 1 | D4: Shift 2 | E4: Total | F4: Grades | G4: Base Rate | H4: Daily Leave Cost | I4: Medicals Survey and First aid boxes | J4: PPE and Safety | K4: Consumables | L4: Transport | M4: Training | N4: Night Shift Allowance (12% of base rate) | O4: Total Cost | P4: Management Fee (%) | Q4: Grand Total | R4: Daily Rate | U4: Normal | V4: Sunday | W4: Overtime projection monthly (hours) | X4: Total Cost
A5: 1 | B5: General Workers | C5: 25 | D5: 28 | E5: =SUM(C5:D5) -> 53 | F5: A1 | G5: ='Data input Rework'!E5 -> 0 | H5: ='Data input Rework'!J5 -> 0 | I5: ='Data input Destacking'!$F$55+'Data input Destacking'!$E$78 -> 0 | J5: ='Data input Destacking'!$F$28+'Data input Destacking'!$F$39 -> 0 | K5: ='Data input Destacking'!$F$49 -> 0 | L5: ='Data input Destacking'!$L$63 -> 0 | M5: ='Data input Destacking'!$E$71 -> 0 | N5: =(G5*12%)/2 -> 0 | O5: =SUM(G5:N5)*E5 -> 0 | Q5: =(P5*O5)+O5 -> 0 | R5: =Q5/E5 -> 0 | T5: =R5-S5 -> 0 | U5: =(G5/9)*1.5 -> 0 | V5: =(G5/9)*2 -> 0 | W5: 30 | X5: =U5*W5*E5 -> 0
A6: 2 | B6: General Workers | C6: 6 | E6: =SUM(C6:D6) -> 6 | F6: A1 | G6: ='Data input Rework'!E6 -> 0 | H6: ='Data input Rework'!J6 -> 0 | I6: ='Data input Destacking'!$F$55+'Data input Destacking'!$E$78 -> 0 | J6: ='Data input Destacking'!$F$28+'Data input Destacking'!$F$39 -> 0 | K6: ='Data input Destacking'!$F$49 -> 0 | L6: ='Data input Destacking'!$L$63 -> 0 | M6: ='Data input Destacking'!$E$71 -> 0 | N6: 0 | O6: =SUM(G6:N6)*E6 -> 0 | Q6: =(P6*O6)+O6 -> 0 | R6: =Q6/E6 -> 0 | U6: =(G6/9)*1.5 -> 0 | V6: 0 | W6: 30 | X6: 0
A7: 3 | B7: General Workers | C7: 9 | E7: 9 | F7: A1 | G7: ='Data input Rework'!E7 -> 0 | H7: ='Data input Rework'!J7 -> 0 | I7: ='Data input Destacking'!$F$55+'Data input Destacking'!$E$78 -> 0 | J7: ='Data input Destacking'!$F$28+'Data input Destacking'!$F$39 -> 0 | K7: ='Data input Destacking'!$F$49 -> 0 | L7: ='Data input Destacking'!$L$63 -> 0 | M7: ='Data input Destacking'!$E$71 -> 0 | N7: 0 | O7: 0 | Q7: 0 | R7: 0 | U7: 0 | V7: 0 | W7: 30 | X7: 0
A8: 4 | B8: Operator | C8: 3 | E8: 3 | F8: B1 | G8: ='Data input Rework'!E8 -> 0 | H8: ='Data input Rework'!J8 -> 0 | I8: ='Data input Destacking'!$F$55+'Data input Destacking'!$E$78 -> 0 | J8: ='Data input Destacking'!$F$28+'Data input Destacking'!$F$39 -> 0 | K8: ='Data input Destacking'!$F$49 -> 0 | L8: ='Data input Destacking'!$L$63 -> 0 | M8: ='Data input Destacking'!$E$71 -> 0 | N8: 0 | O8: 0 | Q8: 0 | R8: 0 | U8: 0 | V8: 0 | W8: 30 | X8: 0
A9: 5 | B9: General Workers | C9: 6 | E9: 6 | F9: A1 | G9: ='Data input Rework'!E9 -> 0 | H9: ='Data input Rework'!J9 -> 0 | I9: ='Data input Destacking'!$F$55+'Data input Destacking'!$E$78 -> 0 | J9: ='Data input Destacking'!$F$28+'Data input Destacking'!$F$39 -> 0 | K9: ='Data input Destacking'!$F$49 -> 0 | L9: ='Data input Destacking'!$L$63 -> 0 | M9: ='Data input Destacking'!$E$71 -> 0 | N9: 0 | O9: 0 | Q9: 0 | R9: 0 | U9: 0 | V9: 0 | W9: 30 | X9: 0
A10: 6 | B10: Operator | C10: 2 | D10: 1 | E10: 3 | F10: B1 | G10: ='Data input Rework'!E10 -> 0 | H10: ='Data input Rework'!J10 -> 0 | I10: ='Data input Destacking'!$F$55+'Data input Destacking'!$E$78 -> 0 | J10: ='Data input Destacking'!$F$28+'Data input Destacking'!$F$39 -> 0 | K10: ='Data input Destacking'!$F$49 -> 0 | L10: ='Data input Destacking'!$L$63 -> 0 | M10: ='Data input Destacking'!$E$71 -> 0 | N10: 0 | O10: 0 | Q10: 0 | R10: 0 | U10: 0 | V10: 0 | W10: 30 | X10: 0
A11: 7 | B11: General Workers | C11: 19 | D11: 4 | E11: 23 | F11: A1 | G11: ='Data input Rework'!E11 -> 0 | H11: ='Data input Rework'!J11 -> 0 | I11: ='Data input Destacking'!$F$55+'Data input Destacking'!$E$78 -> 0 | J11: ='Data input Destacking'!$F$28+'Data input Destacking'!$F$39 -> 0 | K11: ='Data input Destacking'!$F$49 -> 0 | L11: ='Data input Destacking'!$L$63 -> 0 | M11: ='Data input Destacking'!$E$71 -> 0 | N11: =(G11*12%)/2 -> 0 | O11: 0 | Q11: 0 | R11: 0 | U11: 0 | V11: 0 | W11: 30 | X11: 0
A12: 8 | B12: Loaders | C12: 2 | D12: 2 | E12: 4 | F12: A1 | G12: ='Data input Rework'!E12 -> 0 | H12: ='Data input Rework'!J12 -> 0 | I12: ='Data input Destacking'!$F$55+'Data input Destacking'!$E$78 -> 0 | J12: ='Data input Destacking'!$F$28+'Data input Destacking'!$F$39 -> 0 | K12: ='Data input Destacking'!$F$49 -> 0 | L12: ='Data input Destacking'!$L$63 -> 0 | M12: ='Data input Destacking'!$E$71 -> 0 | N12: 0 | O12: 0 | Q12: 0 | R12: 0 | U12: 0 | V12: 0 | W12: 30 | X12: 0
C13: =SUM(C5:C12) -> 72 | D13: 35 | E13: =SUM(E5:E12) -> 107 | P13: Daily Cost | Q13: =SUM(Q5:Q12) -> 0 | W13: Monthly cost | X13: =SUM(X5:X12) -> 0
P14: Monhtly cost | Q14: =Q15/'Data input Rework'!N3 -> 0 | W14: Yearly cost | X14: =X13*12 -> 0
P15: Yearly Cost | Q15: =Q13*'Data input Rework'!N2 -> 0 | W15: 18 Months | X15: =X13*18 -> 0
P17: Ave cost person | Q17: =Q13/E13 -> 0

Sheet Data Input Stacking
L2: Overtime Rates | O2: Prod Days | P2: 236
A3: People | B3: Position | C3: Shift 1 | D3: Shift 2 | E3: Shift 3 | F3: Shift 4 | G3: Grades | H3: Total | I3: Base Daily Rate | J3: Total | L3: Normal | M3: Sun / public | O3: Ave Days monhtly | P3: =P2/12 -> 19.7
B4: Stackers | C4: 25 | D4: 25 | G4: A1 | H4: =SUM(C4:F4) -> 50 | J4: =I4*H4 -> R0.00 | L4: =(I4/9)*1.5 -> R0.00 | M4: =(I4/9)*2 -> R0.00
B5: Sticker Handler | C5: 1 | D5: 1 | G5: A1 | H5: =SUM(C5:F5) -> 2 | J5: =I5*H5 -> R0.00 | L5: =(I5/9)*1.5 -> R0.00 | M5: =(I5/9)*2 -> R0.00
B6: Cleaner | C6: 1 | D6: 1 | G6: A1 | H6: 2 | J6: R0.00 | L6: R0.00 | M6: R0.00
B7: Waste Recovery | C7: 2 | D7: 2 | G7: A1 | H7: 4 | J7: R0.00 | L7: R0.00 | M7: R0.00
B8: Board Separator | C8: 4 | D8: 4 | G8: A3 | H8: 8 | J8: R0.00 | L8: R0.00 | M8: R0.00
B9: Stack Chockers | C9: 1 | D9: 1 | G9: A1 | H9: 2 | J9: R0.00 | L9: R0.00 | M9: R0.00
B10: Chipper & Screen | C10: 1 | G10: A1 | H10: 1 | J10: R0.00 | L10: R0.00 | M10: R0.00
B11: Boiler Feeder | C11: 1 | D11: 1 | E11: 1 | F11: 1 | G11: A1 | H11: 4 | J11: R0.00 | L11: R0.00 | M11: R0.00
B12: Lubricators | C12: 1 | D12: 1 | G12: A1 | H12: 2 | J12: R0.00 | L12: R0.00 | M12: R0.00
B13: Supervisor | C13: 1 | D13: 1 | G13: B1 | H13: 2 | J13: R0.00 | L13: R0.00 | M13: R0.00
B14: Total | C14: =SUM(C4:C13) -> 38 | D14: =SUM(D4:D13) -> 37 | E14: =SUM(E4:E13) -> 1 | F14: =SUM(F4:F13) -> 1 | G14: Grand Total | H14: =SUM(H4:H13) -> 77 | J14: =SUM(J4:J13) -> R0.00
I15: Ave Daily Cost per head | J15: =J14/H14 -> R0.00
F16: Type of Leave (Yearly)
A17: Leave | B17: Poistions | C17: Grade | D17: # No | E17: Base Rate | F17: Annual (days) 1.2 Accum monthly | G17: Sick Leave (days) 30 in 3 year cycle | H17: Holidays Portionsing | I17: Total Days Yearly | J17: Daily Leave cost | K17: Total Cost Yearly
B18: General Labour | C18: A1 | D18: =SUM(H4,H5,H6,H7,H9,H10,H11,H12) -> 67 | E18: =I4 -> R0.00 | F18: =1.2*12 -> 14.4 | G18: =30/3 -> 10 | H18: 10 | I18: =SUM(F18:G18)+H18 -> 34.4 | J18: =(E18*I18)/$P$2 -> 0.00 | K18: =I18*D18*E18 -> R0.00
B19: Other | C19: A3 | D19: =SUM(H8) -> 8 | E19: =I8 -> R0.00 | F19: =1.2*12 -> 14.4 | G19: =30/3 -> 10 | H19: 10 | I19: =SUM(F19:G19)+H19 -> 34.4 | J19: =(E19*I19)/$P$2 -> 0.00 | K19: =I19*D19*E19 -> R0.00
B20: Supervisor | C20: B1 | D20: =SUM(H13) -> 2 | E20: =I13 -> R0.00 | F20: =1.2*12 -> 14.4 | G20: =30/3 -> 10 | H20: 10 | I20: =SUM(F20:G20)+H20 -> 34.4 | J20: 0.00 | K20: =I20*D20*E20 -> R0.00
D21: =SUM(D18:D20) -> 77
I22: Yearly Total | J22: =SUM(K18:K20) -> R0.00
I23: Total Daily Cost | J23: =J22/P2 -> R0.00
I24: Daily Cost Per head | J24: =J23/H14 -> R0.00
A27: PPE | B27: PPE (Essential) | C27: QTY | D27: Unit Price | E27: #No | F27: Total
B28: Safety Boots | C28: 2 | E28: =$H$14 -> 77 | F28: =D28*C28*E28 -> R0.00 | G28: =F28/E28 -> R0.00
B29: Overhauls | C29: 3 | E29: =$H$14 -> 77 | F29: =D29*C29*E29 -> R0.00 | G29: =F29/E29 -> R0.00
B30: Helmet | C30: 1 | E30: 77 | F30: R0.00 | G30: R0.00
B31: T-shirts | C31: 2 | E31: 77 | F31: R0.00 | G31: R0.00
B32: Winter Jacket (N/A) | C32: 1 | E32: 77 | F32: R0.00 | G32: R0.00
E33: Yearly Total | F33: =SUM(F28:F32) -> R0.00 | G33: =SUM(G28:G31) -> R0.00
E34: Total Daily Cost | F34: =F33/P3 -> R0.00 | G34: =G33*199 -> R0.00
E35: Daily Cost Per head | F35: =(F33/H14)/P2 -> R0.00
A37: Consumable PPE | B37: Specialised PPE (Sticker handers and cleaners only) | C37: QTY | D37: Unit Price | E37: #No | F37: Total
B38: Rain coat | C38: 1 | E38: 4 | F38: =D38*C38*E38 -> R0.00
B39: Water Boots | C39: 1 | E39: 4 | F39: =D39*C39*E39 -> R0.00
E40: Yearly Total | F40: =SUM(F38:F39) -> R0.00
E41: Total Daily Cost | F41: =F40/P2 -> R0.00
E42: Daily Cost Per head | F42: =F41/H14 -> R0.00
B45: Consumable PPE | C45: QTY | D45: Unit Price | E45: #No | F45: Total
B46: Ear plugs (1 in 3 months) | C46: 4 | E46: =$H$14 -> 77 | F46: =E46*D46*C46 -> R0.00
B47: Gloves (1 pair monthly) | C47: 12 | E47: =$H$14 -> 77 | F47: =E47*D47*C47 -> R0.00
B48: Apron ( 1 in 3 months) | C48: 4 | E48: 77 | F48: R0.00
E49: Yearly Total | F49: =SUM(F46:F48) -> R0.00
E50: Total Daily Cost | F50: =F49/P2 -> R0.00
E51: Daily Cost Per head | F51: =F50/H14 -> 0.00
A54: General Consumables | B54: Consumables | C54: QTY | D54: Unit Price | E54: #No | F54: Total
B55: Soap (1 bar every month) | C55: 6 | E55: =$H$14 -> 77 | F55: =C55*D55*E55 -> R0.00
B56: Polish (2 every month) | C56: 8 | E56: =$H$14 -> 77 | F56: =C56*D56*E56 -> R0.00
B57: Toliet Paper ( 4 in 1 month) | C57: =4*12 -> 48 | E57: 77 | F57: R0.00
E58: Yearly Total | F58: =SUM(F55:F57) -> R0.00
E59: Total Daily Cost | F59: =F58/P2 -> R0.00
E60: Daily Cost Per head | F60: =F59/H14 -> R0.00
A63: Medicals | B63: Medicals | C63: #No | D63: Unit Price | E63: Frequency Yearly | F63: Total
C64: =H14 -> 77 | E64: 1 | F64: =C64*D64*E64 -> R0.00
E65: Total Daily Cost | F65: =F64/P2 -> R0.00
E66: Daily Cost Per head | F66: =F65/H14 -> R0.00
A69: Transport | B69: Transport | C69: Destination | D69: Split | E69: # No | F69: Distance (incl. return) | G69: People per shift | H69: Transport mode | I69: Km Rates | J69: Trips weekly | K69: Cost weekly | L69: Cost yearly
C70: VHUVHA | D70: 85% | E70: =D70*H14 -> 65 | F70: 20.00 | G70: =E70/2 -> 33 | H70: Truck | J70: 2 | K70: =F70*I70*J70 -> R0.00 | L70: =K70*($P$2/5) -> R0.00
C71: THSAKUMA | D71: 15% | E71: =D71*H14 -> 12 | F71: 30.00 | G71: =E71/2 -> 6 | H71: Bakkie | J71: 2 | K71: =F71*I71*J71 -> R0.00 | L71: =K71*($P$2/5) -> R0.00
E72: =SUM(E70:E71) -> 77 | K72: Yearly Total | L72: =SUM(L70:L71) -> R0.00
H73: Note: Overtime to be invoice on Km Rates | K73: Total Daily Cost | L73: =L72/P2 -> R0.00
K74: Daily Cost Per head | L74: =L73/H14 -> R0.00
A78: Training | B78: Training | C78: QTY | D78: Unit Price | E78: Total
B79: First Aid | C79: 3 | E79: =C79*D79 -> 0
B80: SHE Rep | E80: =C80*D80 -> 0 | F80: to be provided by KLF
D81: Yearly Total | E81: =SUM(E79:E80) -> 0
D82: Total Daily Cost | E82: =E81/P2 -> 0.00
D83: Daily Cost Per head | E83: =E82/H14 -> 0.00
A86: First Aid | B86: First Aid Box | C86: QTY | D86: Unit Price | E86: Total
B87: Box | C87: 1 | E87: =D87*C87 -> 0
D88: Yearly Total | E88: =SUM(E87) -> 0
D89: Total Daily Cost | E89: =E88/P2 -> 0.00
D90: Daily Cost Per head | E90: =E89/H14 -> 0.00

Sheet Data input Destacking
M2: Ave Yearly Prod Days | N2: 236
F3: Type of Leaves (Yearly) | M3: Ave Monthly Prod Days | N3: =N2/12 -> 19.67
A4: Leave Costing | B4: Poistions | C4: # No | D4: Grades | E4: Daily Base Rate | F4: Annual (days) 1 Accum monthly | G4: Sick Leave (days) 30 in 3 year cycle | H4: Provision for Public Holidays | I4: Total Days Yearly | J4: Daily leave cost | K4: Total Cost Yearly
B5: Destackers | C5: 8 | D5: A3 | F5: =1.2*12 -> 14.4 | G5: =30/3 -> 10 | H5: 10 | I5: =SUM(F5:H5) -> 34.4 | J5: =(I5*E5)/235 -> 0.000 | K5: =I5*C5*E5 -> R0.00
B6: Trimsaw operators | C6: 8 | D6: B1 | F6: =1.2*12 -> 14.4 | G6: =30/3 -> 10 | H6: 10 | I6: =SUM(F6:H6) -> 34.4 | J6: =(I6*E6)/235 -> 0.000 | K6: =I6*C6*E6 -> R0.00
B7: X-cut operator | C7: 2 | D7: B1 | F7: 14.4 | G7: 10 | H7: 10 | I7: 34.4 | J7: 0.000 | K7: R0.00
B8: General workers | C8: 4 | D8: A1 | F8: 14.4 | G8: 10 | H8: 10 | I8: 34.4 | J8: 0.000 | K8: R0.00
B9: Ticket Writers | C9: 2 | D9: A3 | F9: 14.4 | G9: 10 | H9: 10 | I9: 34.4 | J9: 0.000 | K9: R0.00
B10: Strapper | C10: 2 | D10: A1 | F10: 14.4 | G10: 10 | H10: 10 | I10: 34.4 | J10: 0.000 | K10: R0.00
B11: Grader | C11: 4 | D11: B1 | F11: 14.4 | G11: 10 | H11: 10 | I11: 34.4 | J11: 0.000 | K11: R0.00
B12: Stackers | C12: 18 | D12: A1 | F12: 14.4 | G12: 10 | H12: 10 | I12: 34.4 | J12: 0.000 | K12: R0.00
B13: Sorters | C13: 8 | D13: A1 | F13: 14.4 | G13: 10 | H13: 10 | I13: 34.4 | J13: 0.000 | K13: R0.00
B14: Supervisor | C14: 2 | D14: B4 | F14: 14.4 | G14: 10 | H14: 10 | I14: 34.4 | J14: 0.000 | K14: R0.00
B15: Foreman | C15: 1 | D15: C1 | F15: 14.4 | G15: 10 | H15: 10 | I15: 34.4 | J15: 0.000 | K15: R0.00
B16: Total People | C16: =SUM(C5:C15) -> 59 | J16: Yearly Total | K16: =SUM(K5:K15) -> R0.00
J17: Total Daily Cost | K17: =SUM(J5:J15) -> R0.00
A21: Core PPE Costing | B21: PPE (Essential) | C21: QTY per annum | D21: Unit Price | E21: #No | F21: Total
B22: Safety Boots | C22: 2 | E22: =$C$16 -> 59 | F22: =D22*C22*E22 -> R0.00 | I22: Note: Only put inputs of the yellow Columns
B23: Overhauls | C23: 3 | E23: =$C$16 -> 59 | F23: =D23*C23*E23 -> R0.00
B24: Helmet | C24: 1 | E24: 59 | F24: R0.00
B25: T-shirts | C25: 2 | E25: 59 | F25: R0.00
E26: Yearly Total | F26: =SUM(F22:F25) -> R0.00
E27: Total Daily Cost | F27: =F26/N2 -> R0.00
E28: Daily Cost Per head | F28: =F27/C16 -> R0.00
A33: Consumable PPE | B33: Consumable PPE | C33: QTY | D33: Unit Price | E33: #No | F33: Total
B34: Ear plugs (1 in 3 months) | C34: 4 | E34: =$C$16 -> 59 | F34: =E34*D34*C34 -> R0.00
B35: Gloves (1 pair monthly) | C35: 12 | E35: =$C$16 -> 59 | F35: =E35*D35*C35 -> R0.00
B36: Apron ( 1 in 3 months) | C36: 4 | E36: 59 | F36: =E36*D36*C36 -> R0.00
E37: Yearly Total | F37: =SUM(F34:F36) -> R0.00
E38: Total Daily Cost | F38: =F37/N2 -> R0.00
E39: Daily Cost Per head | F39: =F38/C16 -> 0.00
A43: General Consumables | B43: Consumables | C43: QTY | D43: Unit Price | E43: #No | F43: Total
B44: Soap (1 bar every month) | C44: 6 | E44: =$C$16 -> 59 | F44: =C44*D44*E44 -> R0.00
B45: Polish (2 every month) | C45: 8 | E45: =$C$16 -> 59 | F45: =C45*D45*E45 -> R0.00
B46: Toliet Paper ( 4 in 1 month) | C46: =4*12 -> 48 | E46: 59 | F46: R0.00
E47: Yearly Total | F47: =SUM(F44:F46) -> R0.00
E48: Total Daily Cost | F48: =F47/N2 -> R0.00
E49: Daily Cost Per head | F49: =F48/E46 -> R0.00
A52: Medicals | B52: Medicals | C52: #No of workers | D52: Cost per person | E52: Frequency Yearly | F52: Total
C53: =C16 -> 59 | E53: 1 | F53: =C53*D53*E53 -> R0.00
E54: Total Daily Cost | F54: =F53/N2 -> R0.00
E55: Daily Cost Per head | F55: =F54/C53 -> R0.00
A58: Transport | B58: Destination | C58: Split | D58: # No | E58: Distance (incl. return) | F58: People per shift | G58: Transport mode | I58: Km Rates | J58: Trips weekly | K58: Cost weekly | L58: Cost yearly
B59: VHUVHA | C59: 85% | D59: =C59*$C$16 -> 50 | E59: 25.00 | F59: =D59/2 -> 25 | G59: Truck | J59: 2 | K59: =E59*I59*J59 -> R0.00 | L59: =K59*47 -> R0.00
B60: THSAKUMA | C60: 15% | D60: =C60*$C$16 -> 9 | E60: 30.00 | F60: =D60/2 -> 4 | G60: Bakkie | J60: 2 | K60: =E60*I60*J60 -> R0.00 | L60: =K60*47 -> R0.00
C61: =SUM(C59:C60) -> 100% | D61: =SUM(D59:D60) -> 59 | K61: Yearly Total | L61: =SUM(L59:L60) -> R0.00
G62: Note: Overtime to be invoice on Km Rates | K62: Total Daily Cost | L62: =L61/N2 -> R0.00
K63: Daily Cost Per head | L63: =L62/D61 -> R0.00
A66: Training | B66: Training type | C66: QTY | D66: Price | E66: Total
B67: First Aid | C67: 2 | E67: =C67*D67 -> 0
B68: SHE Rep | C68: 2 | D68: 0 | E68: =C68*D68 -> 0 | F68: To be provided by KLF
D69: Yearly Total | E69: =SUM(E67:E68) -> 0
D70: Total Daily Cost | E70: =E69/N2 -> 0.00
D71: Daily Cost Per head | E71: =E70/C16 -> 0.00
A74: First Aid | B74: First Aid Box | C74: QTY | D74: Price | E74: Total
B75: Box | C75: 2 | E75: =D75*C75 -> 0
D76: Yearly Total | E76: =SUM(E75) -> 0
D77: Total Daily Cost | E77: =E76/N2 -> 0.00
D78: Daily Cost Per head | E78: =E77/C16 -> 0.00

Sheet Data input Rework
M2: Ave Yearly Prod Days | N2: 236
F3: Type of Leave (Yearly) | M3: Ave Monthly Prod Days | N3: =N2/12 -> 19.67
A4: Leave Costing | B4: Poistions | C4: # No | D4: Grades | E4: Daily Base Rate | F4: Annual (days) 1 Accum monthly | G4: Sick Leave (days) 30 in 3 year cycle | H4: Provision for Public Holidays | I4: Total Days Yearly | J4: Daily leave cost | K4: Total Cost Yearly
B5: General Workers | C5: 53 | D5: A1 | F5: =1.2*12 -> 14.4 | G5: =30/3 -> 10 | H5: 10.00 | I5: =SUM(F5:H5) -> 34.4 | J5: =(I5*E5)/$N$2 -> R0.00 | K5: =I5*C5*E5 -> R0.00
B6: General Workers | C6: 6 | D6: A1 | F6: =1.2*12 -> 14.4 | G6: =30/3 -> 10 | H6: 10.00 | I6: =SUM(F6:H6) -> 34.4 | J6: =(I6*E6)/$N$2 -> R0.00 | K6: =I6*C6*E6 -> R0.00
B7: General Workers | C7: 9 | D7: A1 | F7: 14.4 | G7: 10 | H7: 10.00 | I7: 34.4 | J7: R0.00 | K7: R0.00
B8: Operator | C8: 3 | D8: B1 | F8: 14.4 | G8: 10 | H8: 10.00 | I8: 34.4 | J8: R0.00 | K8: R0.00
B9: General Workers | C9: 6 | D9: A1 | F9: 14.4 | G9: 10 | H9: 10.00 | I9: 34.4 | J9: R0.00 | K9: R0.00
B10: Operator | C10: 3 | D10: B1 | F10: 14.4 | G10: 10 | H10: 10.00 | I10: 34.4 | J10: R0.00 | K10: R0.00
B11: General Workers | C11: 23 | D11: A1 | F11: 14.4 | G11: 10 | H11: 10.00 | I11: 34.4 | J11: R0.00 | K11: R0.00
B12: Loaders | C12: 4 | D12: A1 | F12: 14.4 | G12: 10 | H12: 10.00 | I12: 34.4 | J12: R0.00 | K12: R0.00
B13: Total People | C13: =SUM(C5:C12) -> 107 | J13: Yearly Total | K13: =SUM(K5:K12) -> R0.00
J14: Total Daily Cost | K14: =SUM(J5:J12) -> R0.00
A18: Core PPE | B18: PPE (Essential) | C18: QTY per annum | D18: Unit Price | E18: #No | F18: Total
B19: Safety Boots | C19: 2 | E19: =$C$13 -> 107 | F19: =D19*C19*E19 -> R0.00 | I19: Note: Only put inputs of the yellow Columns
B20: Overhauls | C20: 3 | E20: =$C$13 -> 107 | F20: =D20*C20*E20 -> R0.00
B21: Helmet | C21: 1 | E21: 107 | F21: R0.00
B22: T-shirts | C22: 2 | E22: 107 | F22: R0.00
E23: Yearly Total | F23: =SUM(F19:F22) -> R0.00
E24: Total Daily Cost | F24: =F23/N2 -> R0.00
E25: Daily Cost Per head | F25: =F24/C13 -> R0.00
A30: Consumable PPE | B30: Consumable PPE | C30: QTY | D30: Unit Price | E30: #No | F30: Total
B31: Ear plugs (1 in 3 months) | C31: 4 | E31: =$C$13 -> 107 | F31: =E31*D31*C31 -> R0.00
B32: Gloves (1 pair monthly) | C32: 12 | E32: =$C$13 -> 107 | F32: =E32*D32*C32 -> R0.00
B33: Apron ( 1 in 3 months) | C33: 4 | E33: 107 | F33: R0.00
E34: Yearly Total | F34: =SUM(F31:F33) -> R0.00
E35: Total Daily Cost | F35: =F34/N2 -> R0.00
E36: Daily Cost Per head | F36: =F35/C13 -> 0.00
A40: General Consumables | B40: Consumables | C40: QTY | D40: Price | E40: #No | F40: Total
B41: Soap (1 bar every month) | C41: 6 | E41: =$C$13 -> 107 | F41: =C41*D41*E41 -> R0.00
B42: Polish (2 every month) | C42: 8 | E42: =$C$13 -> 107 | F42: =C42*D42*E42 -> R0.00
B43: Toliet Paper ( 4 in 1 month) | C43: =4*12 -> 48 | E43: 107 | F43: R0.00
E44: Yearly Total | F44: =SUM(F41:F43) -> R0.00
E45: Total Daily Cost | F45: =F44/N2 -> R0.00
E46: Daily Cost Per head | F46: =F45/E43 -> R0.00
A49: Medicals | B49: Medicals | C49: #No of workers | D49: Cost per person | E49: Frequency Yearly | F49: Total
C50: =C13 -> 107 | E50: 1 | F50: =C50*D50*E50 -> R0.00
E51: Total Daily Cost | F51: =F50/N2 -> R0.00
E52: Daily Cost Per head | F52: =F51/C50 -> R0.00
A55: Transport | B55: Destination | C55: Split | D55: # No | E55: Distance (incl. return) | F55: People per shift | G55: Transport mode | I55: Km Rates | J55: Trips weekly | K55: Cost weekly | L55: Cost yearly
B56: VHUVHA | C56: 85% | D56: =C56*$C$13 -> 91 | E56: 25.00 | F56: =D56/2 -> 45 | G56: Truck | J56: 2 | K56: =E56*I56*J56 -> R0.00 | L56: =K56*47 -> R0.00
B57: THSAKUMA | C57: 15% | D57: =C57*$C$13 -> 16 | E57: 30.00 | F57: =D57/2 -> 8 | G57: Bakkie | J57: 2 | K57: =E57*I57*J57 -> R0.00 | L57: =K57*47 -> R0.00
C58: =SUM(C56:C57) -> 100% | D58: =SUM(D56:D57) -> 107 | K58: Yearly Total | L58: =SUM(L56:L57) -> R0.00
G59: Note: Overtime to be invoice on Km Rates | K59: Total Daily Cost | L59: =L58/N2 -> R0.00
K60: Daily Cost Per head | L60: =L59/D58 -> R0.00
A63: Training | B63: Training type | C63: QTY | D63: Price | E63: Total
B64: First Aid | C64: 2 | E64: =C64*D64 -> 0
B65: SHE Rep | C65: 2 | E65: =C65*D65 -> 0 | F65: To be provided by KLF
D66: Yearly Total | E66: =SUM(E64:E65) -> 0
D67: Total Daily Cost | E67: =E66/N2 -> 0.00
D68: Daily Cost Per head | E68: =E67/C13 -> 0.00
A71: First Aid | B71: First Aid Box | C71: QTY | D71: Price | E71: Total
B72: Box | C72: 2 | E72: =D72*C72 -> 0
D73: Yearly Total | E73: =SUM(E72) -> 0
D74: Total Daily Cost | E74: =E73/N2 -> 0.00
D75: Daily Cost Per head | E75: =E74/C13 -> 0.00
